{"text_format":"1","workbook":"xlsx","n_sheets":3,"sheets":["Dashboard","Bodega de datos","Tablas dinámicas"],"not_rendered":{"charts":5,"images":31,"macros":1,"external_links":0,"defined_names":1,"comments":0,"pivot_tables":14},"unopened":[],"bounds":{"document_bytes":16777216,"sheet_cells":100000,"rows_first":2000,"rows_last":500,"rows_between":2000,"halvings":0,"cell_chars":16384,"cell_head_chars":4096},"cells_cut":0,"cells_raw":0,"read":"whole","date_system":"1900"}

{"sheet":"Dashboard","index":0,"n_rows":49,"n_cols":21,"rows_kept":49,"cut":false,"hidden":false,"merged":[[48,20,49,23]]}
[]
[]
[]
[]
[]
[]
[]
[]
[]
[]
[]
[]
[]
[]
[]
[]
[]
[]
[]
[]
[]
[]
[]
[]
[]
[]
[]
[]
[]
[]
[]
[]
[]
[]
[]
[]
[]
[]
[]
[]
[]
[]
[]
[]
[]
[]
[]
[]
[null,null,null,null,null,null,null,null,null,null,null,null,null,null,null,null,null,null,null,null,"Actualizar base de datos"]

{"sheet":"Bodega de datos","index":1,"n_rows":16,"n_cols":45,"rows_kept":16,"cut":false,"hidden":false,"merged":[[1,33,1,43],[1,1,1,8],[1,11,1,21],[1,23,1,32],[0,1,0,2]]}
[null,"Actualizar tabla "]
[null,"Canal de atención a la ciudadanía",null,null,null,null,null,null,null,null,null,"Entidad destinataria de la pqrsd que se está trasladando",null,null,null,null,null,null,null,null,null,null,null,"Tipología de las pqrs pendientes de trámite",null,null,null,null,null,null,null,null,null,"PQRSD pendientes de trámite por dependencia del DADEP"]
["Mes","Presencial","Telefónico","Redes sociales","Chat","Correo electrónico","Ventanilla de radicación","Buzón de sugerencias","Bogotá te escucha","Pqrs recibidas","Pqrs trasladadas","Secretaría de Movilidad","Secretaría de Desarrollo Económico","Secretaría de Gobierno","Secretaría de Ambiente","Secretaría de Habitat","Instituto para la Economía Social - IPES","Instituto Distrital de Recreación y Deporte -IDRD","Instituto Distrital de Participación y Acción Comunal - IDPAC","Secretaría de Planeación","IDU","Otra entidad destinataria","Pqrs pendientes de trámite al final de cada mes","derecho de petición de interés particular","derecho de petición de interés general","reclamo","queja","solicitud de acceso a la información","consulta","felicitación","solicitud de copias","sugerencias","denuncia por actos de corrupción","Dirección","Subdirección de Registro Inmobiliario","Subdirección de Gestión Inmobiliaria y de Espacio Público","Subdirección de Gestión Corporativa","Oficina de  Control Disciplinario","Oficina Jurídica","Oficina Asesora de Planeación","Oficina Asesora de Comunicaciones ","Atención al ciudadano","Oficina de Control Interno","total","Columna1"]
["enero",118,198,20,27,1109,5,0,270,270,224,15,2,114,8,0,24,4,1,null,null,56,51,22,19,1,2,1,6,0,0,0,0,0,12,34,0,0,0,0,0,5,0,{"$f":"+Tabla1[[#This Row],[Dirección]]+Tabla1[[#This Row],[Subdirección de Registro Inmobiliario]]+Tabla1[[#This Row],[Subdirección de Gestión Inmobiliaria y de Espacio Público]]+Tabla1[[#This Row],[Oficina de  Control Disciplinario]]+Tabla1[[#This Row],[Oficina Jurídica]]+Tabla1[[#This Row],[Oficina Asesora de Planeación]]+Tabla1[[#This Row],[Oficina Asesora de Comunicaciones ]]+Tabla1[[#This Row],[Oficina de Control Interno]]+Tabla1[[#This Row],[Atención al ciudadano]]+Tabla1[[#This Row],[Subdirección de Gestión Corporativa]]","v":51},{"$f":"+Tabla1[[#This Row],[Pqrs pendientes de trámite al final de cada mes]]","v":51}]
["febrero",162,247,15,45,1194,3,0,386,386,289,11,0,182,3,0,29,10,1,null,null,53,61,40,16,0,4,0,0,0,0,0,1,1,14,39,0,1,2,0,0,4,0,61,0]
["marzo",179,240,15,47,1539,1,0,388,388,289,8,1,173,11,0,30,12,0,null,null,54,64,41,13,2,2,2,4,0,0,0,0,0,5,50,0,0,2,0,0,7,0,{"$f":"+Tabla1[[#This Row],[Dirección]]+Tabla1[[#This Row],[Subdirección de Registro Inmobiliario]]+Tabla1[[#This Row],[Subdirección de Gestión Inmobiliaria y de Espacio Público]]+Tabla1[[#This Row],[Oficina de  Control Disciplinario]]+Tabla1[[#This Row],[Oficina Jurídica]]+Tabla1[[#This Row],[Oficina Asesora de Planeación]]+Tabla1[[#This Row],[Oficina Asesora de Comunicaciones ]]+Tabla1[[#This Row],[Oficina de Control Interno]]+Tabla1[[#This Row],[Atención al ciudadano]]+Tabla1[[#This Row],[Subdirección de Gestión Corporativa]]","v":64},{"$f":"+Tabla1[[#This Row],[Pqrs pendientes de trámite al final de cada mes]]","v":64}]
["abril",128,190,8,42,1290,1,0,349,349,280,7,0,163,14,0,36,13,0,null,null,47,54,28,19,1,0,1,5,0,0,0,0,0,18,30,3,0,1,0,0,2,0,{"$f":"+Tabla1[[#This Row],[Dirección]]+Tabla1[[#This Row],[Subdirección de Registro Inmobiliario]]+Tabla1[[#This Row],[Subdirección de Gestión Inmobiliaria y de Espacio Público]]+Tabla1[[#This Row],[Oficina de  Control Disciplinario]]+Tabla1[[#This Row],[Oficina Jurídica]]+Tabla1[[#This Row],[Oficina Asesora de Planeación]]+Tabla1[[#This Row],[Oficina Asesora de Comunicaciones ]]+Tabla1[[#This Row],[Oficina de Control Interno]]+Tabla1[[#This Row],[Atención al ciudadano]]+Tabla1[[#This Row],[Subdirección de Gestión Corporativa]]","v":54},{"$f":"+Tabla1[[#This Row],[Pqrs pendientes de trámite al final de cada mes]]","v":54}]
["mayo",99,229,10,59,1592,0,0,382,382,267,10,0,148,8,0,45,8,0,null,null,48,68,40,19,0,1,1,7,0,0,0,0,0,11,48,0,0,3,0,0,6,0,{"$f":"+Tabla1[[#This Row],[Dirección]]+Tabla1[[#This Row],[Subdirección de Registro Inmobiliario]]+Tabla1[[#This Row],[Subdirección de Gestión Inmobiliaria y de Espacio Público]]+Tabla1[[#This Row],[Oficina de  Control Disciplinario]]+Tabla1[[#This Row],[Oficina Jurídica]]+Tabla1[[#This Row],[Oficina Asesora de Planeación]]+Tabla1[[#This Row],[Oficina Asesora de Comunicaciones ]]+Tabla1[[#This Row],[Oficina de Control Interno]]+Tabla1[[#This Row],[Atención al ciudadano]]+Tabla1[[#This Row],[Subdirección de Gestión Corporativa]]","v":68},{"$f":"+Tabla1[[#This Row],[Pqrs pendientes de trámite al final de cada mes]]","v":68}]
["junio",107,232,13,31,1380,0,0,328,328,237,6,0,113,12,1,41,6,3,null,null,55,55,23,19,2,4,2,5,0,0,0,0,2,12,26,0,0,1,0,1,13,0,{"$f":"+Tabla1[[#This Row],[Dirección]]+Tabla1[[#This Row],[Subdirección de Registro Inmobiliario]]+Tabla1[[#This Row],[Subdirección de Gestión Inmobiliaria y de Espacio Público]]+Tabla1[[#This Row],[Oficina de  Control Disciplinario]]+Tabla1[[#This Row],[Oficina Jurídica]]+Tabla1[[#This Row],[Oficina Asesora de Planeación]]+Tabla1[[#This Row],[Oficina Asesora de Comunicaciones ]]+Tabla1[[#This Row],[Oficina de Control Interno]]+Tabla1[[#This Row],[Atención al ciudadano]]+Tabla1[[#This Row],[Subdirección de Gestión Corporativa]]","v":55},{"$f":"+Tabla1[[#This Row],[Pqrs pendientes de trámite al final de cada mes]]","v":55}]
["julio",78,204,12,16,1515,4,0,333,333,261,12,1,137,4,0,40,13,2,12,11,29,33,15,11,0,2,1,4,0,0,0,0,0,11,14,1,0,3,0,0,4,0,{"$f":"+Tabla1[[#This Row],[Dirección]]+Tabla1[[#This Row],[Subdirección de Registro Inmobiliario]]+Tabla1[[#This Row],[Subdirección de Gestión Inmobiliaria y de Espacio Público]]+Tabla1[[#This Row],[Oficina de  Control Disciplinario]]+Tabla1[[#This Row],[Oficina Jurídica]]+Tabla1[[#This Row],[Oficina Asesora de Planeación]]+Tabla1[[#This Row],[Oficina Asesora de Comunicaciones ]]+Tabla1[[#This Row],[Oficina de Control Interno]]+Tabla1[[#This Row],[Atención al ciudadano]]+Tabla1[[#This Row],[Subdirección de Gestión Corporativa]]","v":33},{"$f":"+Tabla1[[#This Row],[Pqrs pendientes de trámite al final de cada mes]]","v":33}]
["agosto",104,232,6,29,1502,2,0,376,376,282,5,1,170,13,0,39,9,0,3,13,29,24,6,10,2,3,0,1,0,1,0,1,0,4,8,0,1,1,0,0,10,0,{"$f":"+Tabla1[[#This Row],[Dirección]]+Tabla1[[#This Row],[Subdirección de Registro Inmobiliario]]+Tabla1[[#This Row],[Subdirección de Gestión Inmobiliaria y de Espacio Público]]+Tabla1[[#This Row],[Oficina de  Control Disciplinario]]+Tabla1[[#This Row],[Oficina Jurídica]]+Tabla1[[#This Row],[Oficina Asesora de Planeación]]+Tabla1[[#This Row],[Oficina Asesora de Comunicaciones ]]+Tabla1[[#This Row],[Oficina de Control Interno]]+Tabla1[[#This Row],[Atención al ciudadano]]+Tabla1[[#This Row],[Subdirección de Gestión Corporativa]]","v":24},{"$f":"+Tabla1[[#This Row],[Pqrs pendientes de trámite al final de cada mes]]","v":24}]
["septiembre",null,null,null,null,null,null,null,null,null,null,null,null,null,null,null,null,null,null,null,null,null,null,null,null,null,null,null,null,null,null,null,null,null,null,null,null,null,null,null,null,null,null,{"$f":"+Tabla1[[#This Row],[Dirección]]+Tabla1[[#This Row],[Subdirección de Registro Inmobiliario]]+Tabla1[[#This Row],[Subdirección de Gestión Inmobiliaria y de Espacio Público]]+Tabla1[[#This Row],[Oficina de  Control Disciplinario]]+Tabla1[[#This Row],[Oficina Jurídica]]+Tabla1[[#This Row],[Oficina Asesora de Planeación]]+Tabla1[[#This Row],[Oficina Asesora de Comunicaciones ]]+Tabla1[[#This Row],[Oficina de Control Interno]]+Tabla1[[#This Row],[Atención al ciudadano]]+Tabla1[[#This Row],[Subdirección de Gestión Corporativa]]","v":0},{"$f":"+Tabla1[[#This Row],[Pqrs pendientes de trámite al final de cada mes]]","v":0}]
["octubre",null,null,null,null,null,null,null,null,null,null,null,null,null,null,null,null,null,null,null,null,null,null,null,null,null,null,null,null,null,null,null,null,null,null,null,null,null,null,null,null,null,null,{"$f":"+Tabla1[[#This Row],[Dirección]]+Tabla1[[#This Row],[Subdirección de Registro Inmobiliario]]+Tabla1[[#This Row],[Subdirección de Gestión Inmobiliaria y de Espacio Público]]+Tabla1[[#This Row],[Oficina de  Control Disciplinario]]+Tabla1[[#This Row],[Oficina Jurídica]]+Tabla1[[#This Row],[Oficina Asesora de Planeación]]+Tabla1[[#This Row],[Oficina Asesora de Comunicaciones ]]+Tabla1[[#This Row],[Oficina de Control Interno]]+Tabla1[[#This Row],[Atención al ciudadano]]+Tabla1[[#This Row],[Subdirección de Gestión Corporativa]]","v":0},{"$f":"+Tabla1[[#This Row],[Pqrs pendientes de trámite al final de cada mes]]","v":0}]
["noviembre",null,null,null,null,null,null,null,null,null,null,null,null,null,null,null,null,null,null,null,null,null,null,null,null,null,null,null,null,null,null,null,null,null,null,null,null,null,null,null,null,null,null,{"$f":"+Tabla1[[#This Row],[Dirección]]+Tabla1[[#This Row],[Subdirección de Registro Inmobiliario]]+Tabla1[[#This Row],[Subdirección de Gestión Inmobiliaria y de Espacio Público]]+Tabla1[[#This Row],[Oficina de  Control Disciplinario]]+Tabla1[[#This Row],[Oficina Jurídica]]+Tabla1[[#This Row],[Oficina Asesora de Planeación]]+Tabla1[[#This Row],[Oficina Asesora de Comunicaciones ]]+Tabla1[[#This Row],[Oficina de Control Interno]]+Tabla1[[#This Row],[Atención al ciudadano]]+Tabla1[[#This Row],[Subdirección de Gestión Corporativa]]","v":0},{"$f":"+Tabla1[[#This Row],[Pqrs pendientes de trámite al final de cada mes]]","v":0}]
["diciembre",null,null,null,null,null,null,null,null,null,null,null,null,null,null,null,null,null,null,null,null,null,null,null,null,null,null,null,null,null,null,null,null,null,null,null,null,null,null,null,null,null,null,{"$f":"+Tabla1[[#This Row],[Dirección]]+Tabla1[[#This Row],[Subdirección de Registro Inmobiliario]]+Tabla1[[#This Row],[Subdirección de Gestión Inmobiliaria y de Espacio Público]]+Tabla1[[#This Row],[Oficina de  Control Disciplinario]]+Tabla1[[#This Row],[Oficina Jurídica]]+Tabla1[[#This Row],[Oficina Asesora de Planeación]]+Tabla1[[#This Row],[Oficina Asesora de Comunicaciones ]]+Tabla1[[#This Row],[Oficina de Control Interno]]+Tabla1[[#This Row],[Atención al ciudadano]]+Tabla1[[#This Row],[Subdirección de Gestión Corporativa]]","v":0},{"$f":"+Tabla1[[#This Row],[Pqrs pendientes de trámite al final de cada mes]]","v":0}]
["Acumulado año",{"$f":"+B4+B5+B6+B7+B8+B9+B10+B11+B12+B13+B14+B15","v":975},{"$f":"+C4+C5+C6+C7+C8+C9+C10+C11+C12+C13+C14+C15","v":1772},99,296,11121,16,0,{"$f":"+I4+I5+I6+I7+I8+I9+I10+I11+I12+I13+I14+I15","v":2812},{"$f":"+J15+J14+J13+J12+J11+J10+J9+J7+J8+J6+J5+J4","v":2812},{"$f":"+K15+K14+K13+K12+K11+K10+K9+K8+K7+K6+K5+K4","v":2129},74,5,1200,73,1,284,75,7,null,null,371,410,215,126,8,18,8,32,0,1,0,2,3,87,249,4,2,13,0,1,51,0,{"$f":"+AR15+AR14+AR13+AR12+AR11+AR10+AR9+AR8+AR7+AR6+AR5+AR4","v":410},{"$f":"+Tabla1[[#This Row],[Pqrs pendientes de trámite al final de cada mes]]","v":410}]

{"sheet":"Tablas dinámicas","index":2,"n_rows":110,"n_cols":11,"rows_kept":110,"cut":false,"hidden":false,"merged":[[0,6,2,9],[0,1,1,4],[2,1,2,4]]}
[null,"Regresar "]
[]
[null,"al Dashboard"]
["Cantidad de atenciones brindadas a la ciudadanía por canal"]
[]
["Etiquetas de fila","Suma de Presencial",null,"Etiquetas de fila","Suma de Telefónico",null,"Etiquetas de fila","Suma de Redes sociales",null,"Etiquetas de fila","Suma de Chat"]
["agosto",104,null,"agosto",232,null,"agosto",6,null,"agosto",29]
["Total general",104,null,"Total general",232,null,"Total general",6,null,"Total general",29]
[]
[]
[]
[]
[]
[]
[]
[]
[]
[]
[]
[]
[null,{"$f":"+GETPIVOTDATA(\"Presencial\",$A$6)","v":104}]
[]
["Etiquetas de fila","Suma de Correo electrónico",null,"Etiquetas de fila","Suma de Ventanilla de radicación",null,"Etiquetas de fila","Suma de Buzón de sugerencias",null,"Etiquetas de fila","Suma de Bogotá te escucha"]
["agosto",1502,null,"agosto",2,null,"agosto",0,null,"agosto",376]
["Total general",1502,null,"Total general",2,null,"Total general",0,null,"Total general",376]
[]
[]
[]
[]
[]
[]
[]
[]
[]
[]
[]
[]
[]
[]
["Cantidad de PQRS recibidas y trasladadas"]
[]
["Etiquetas de fila","Suma de Pqrs recibidas",null,"Etiquetas de fila","Suma de Pqrs trasladadas",null,null,"Etiquetas de columna"]
["agosto",376,null,"agosto",282,null,"Valores","agosto","Total general"]
["Total general",376,null,"Total general",282,null,"Secretaría de Movilidad.",5,5]
[null,null,null,null,null,null,"Secretaría de Desarrollo Económico.",1,1]
[null,null,null,null,null,null,"Secretaría de Gobierno.",170,170]
[null,null,null,null,null,null,"Secretaría de Ambiente.",13,13]
[null,null,null,null,null,null,"Recreación y Deporte -IDRD.",9,9]
[null,null,null,null,null,null,"Participación y Acción Comunal - IDPAC.",0,0]
[null,null,null,null,null,null,"Instituto para la Economía Social - IPES.",39,39]
[null,null,null,null,null,null,"Otra entidad destinataria.",29,29]
[null,null,null,null,null,null,"Suma de Secretaría de Planeación",3,3]
[null,null,null,null,null,null,"Suma de IDU",13,13]
[]
[]
[]
[]
[]
["Cantidad de PQRSD por tipología pendientes de trámite"]
[]
[null,"Etiquetas de columna"]
["Valores","agosto","Total general"]
["Derecho de petición de interés particular.",6,6]
["Derecho de petición de interés general.",10,10]
["Reclamo.",2,2]
["Queja.",3,3]
["Solicitud de acceso a la información.",0,0]
["Consulta.",1,1]
["Felicitación.",0,0]
["Solicitud de copias.",1,1]
["Sugerencias.",0,0]
["Denuncia por actos de corrupción.",1,1]
[]
[]
["PQRSD pendientes de trámite al final del mes"]
[]
["Etiquetas de fila","Pqrs pendientes de trámite al final de cada mes."]
["agosto",24]
["Total general",24]
[]
[]
[]
[]
[]
[]
[]
[]
[]
[]
[]
[]
[]
[]
[]
[]
[]
[]
[]
[]
[]
[]
[]
[]
[]
[]
[]
[]
[null,"Etiquetas de columna"]
[null,"agosto","Total general"]
[" Atención al ciudadano",10,10]